[Event "43rd Indian-chT 2023-24"]
[Site "Dharamsala"]
[Date "2024.04.04"]
[Round "9.5"]
[White "Shyaamnikhil P"]
[Black "Tiwari Shivansh"]
[Result "1/2-1/2"]
[ECO "B15"]
[WhiteElo "2405"]
[BlackElo "1973"]
[Annotator "TA"]
[PlyCount "55"]
[EventDate "2024.03.28"]
[EventType "team-tourn"]
[EventCountry "IND"]
[SourceTitle "playchess.com"]
[Source "ChessBase"]
[SourceQuality "1"]
[TimeControl "5400+30"]

{[%evp 18,55,0,0,0,0,11,-2,18,-21,0,0,0,-14,0,-31,0,0,18,0,25,13,33,-16,0,0,0,0,7,7,7,0,0,0,0,0,0,0,35,0]} 1. e4 {[%emt 0:00:14][%cal Be2e4,Be4e5][%mdl 32]} c6 {[%emt 0:00:33]} 2. d4 {[%emt 0:04:58]} d5 {[%emt 0:00:07]} 3. Nc3 {[%emt 0:00:04]} g6 {[%emt 0:00:04]} 4. Nf3 {[%emt 0:02:04]} Bg7 {[%emt 0:00:05]} 5. h3 {[%emt 0:00:04]} Nf6 {[%emt 0:00:28]} 6. e5 {[%emt 0:01:53]} Ne4 {[%emt 0:00:36]} 7. Bd3 {[%emt 0:03:53]} Nxc3 {[%emt 0:00:17]} 8. bxc3 {[%emt 0:00:06]} c5 {[%emt 0:00:03]} 9. O-O {[%emt 0:01:05]} c4 {[%emt 0:00:08]} 10. Be2 {[%emt 0:00:13]} O-O {[%emt 0:00:07]} 11. Bf4 {[%emt 0:01:27]} Nc6 {[%emt 0:00:32]} 12. Qd2 {[%emt 0:00:11]} Qa5 {[%emt 0:00:10] The position is equal.} 13. Bh6 {[%emt 0:01:59]} f6 {[%emt 0:13:11]} 14. Bxg7 {[%emt 0:09:09]} Kxg7 {[%emt 0:00:08]} 15. Rfe1 {[%emt 0:05:32]} f5 {[%emt 0:12:36]} 16. a3 {[%emt 0:04:50]} a6 {[%emt 0:03:01]} 17. Nh2 {[%emt 0:06:57]} Na7 {[%emt 0:02:49]} 18. Reb1 {[%emt 0:00:43]} Rb8 {[%emt 0:07:47]} 19. f4 {[%emt 0:01:57]} Bd7 {[%emt 0:04:20]} 20. Nf1 {[%emt 0:00:52]} (20. h4 $14) 20... e6 {[%emt 0:07:36]} 21. h4 {[%emt 0:03:01]} h5 {[%emt 0:02:52]} 22. Ne3 {[%emt 0:18:54]} Nb5 {[%emt 0:00:03]} 23. Nd1 {[%emt 0:00:07]} Na7 {[%emt 0:00:05]} 24. Ne3 {[%emt 0:00:05]} Nb5 {[%emt 0:00:04]} 25. Nd1 {[%emt 0:00:04]} Na7 {[%emt 0:00:08]} 26. Ne3 {[%emt 0:00:03]} Nb5 {[%emt 0:00:10]} 27. Nd1 {[%emt 0:00:06]} Na7 {[%emt 0:00:08]} 28. Ne3 {[%emt 0:00:00] Not much happened in this game.   Weighted Error Value: White=0.08 (flawless) /Black=0.10 (very precise) .  Mistake:       	White=1     	---        Inaccurate:     	White=3     	Black=1      OK:         	White=5     	Black=5} 1/2-1/2

[Event "43rd Indian-chT 2023-24"]
[Site "Dharamsala"]
[Date "2024.04.04"]
[Round "9.6"]
[White "Choubey Saurabh"]
[Black "Vignesh N R"]
[Result "0-1"]
[ECO "A29"]
[WhiteElo "2022"]
[BlackElo "2525"]
[Annotator "TA"]
[PlyCount "80"]
[EventDate "2024.03.28"]
[EventType "team-tourn"]
[EventCountry "IND"]
[SourceTitle "playchess.com"]
[Source "ChessBase"]
[SourceQuality "1"]
[TimeControl "5400+30"]

{[%evp 12,80,38,11,33,26,46,-2,20,-25,-26,-23,-23,-30,-9,-23,0,-42,-33,-45,-51,-71,-90,-80,-84,-53,-19,-22,-12,-29,-24,-16,-11,-22,-27,-21,-23,-26,26,22,30,30,30,35,29,29,29,29,37,37,37,35,40,31,41,33,44,32,33,0,33,33,33,-282,-282,-481,-449,-644,-637,-561,-531]} 1. c4 {[%emt 0:00:07]} e5 {[%emt 0:00:36]} 2. g3 {[%emt 0:00:06]} Nf6 {[%emt 0:00:08]} 3. Bg2 {[%emt 0:00:05]} d5 {[%emt 0:00:19]} 4. cxd5 {[%emt 0:00:06]} Nxd5 {[%emt 0:00:05]} 5. Nf3 {[%emt 0:00:05]} Nc6 {[%emt 0:00:41]} 6. O-O {[%emt 0:00:06]} Nf6 {[%emt 0:01:48]} 7. Nc3 {[%emt 0:07:23]} h6 {[%emt 0:01:13]} 8. d3 {[%emt 0:03:45]} Bc5 {[%emt 0:02:15]} 9. Nd2 {[%emt 0:02:50]} (9. Na4 $14 Bd6 10. a3) 9... O-O $11 {[%emt 0:00:44] The position is equal.} 10. Nde4 {[%emt 0:00:24]} Nxe4 {[%emt 0:01:51]} 11. Nxe4 {[%emt 0:01:13]} Bb6 {[%emt 0:02:16]} 12. Nc3 {[%emt 0:01:23]} Re8 {[%emt 0:07:37]} 13. Bd2 {[%emt 0:04:02]} Nd4 {[%emt 0:03:30]} 14. Be3 {[%emt 0:05:19]} c6 {[%emt 0:00:25]} 15. Na4 {[%emt 0:00:58]} Bg4 {[%emt 0:00:34]} 16. Re1 {[%emt 0:01:01]} Ba5 {[%emt 0:03:51]} 17. Nc3 {[%emt 0:03:57]} Qd7 {[%emt 0:01:00] Black has more active pieces.} 18. a3 {[%emt 0:01:15]} Rad8 {[%emt 0:04:53]} 19. b4 {[%emt 0:01:00]} Bb6 {[%emt 0:00:07]} 20. Rc1 {[%emt 0:04:08]} Qe6 {[%emt 0:00:54]} 21. Na4 {[%emt 0:05:56]} Qa2 {[%emt 0:01:42][%csl LRa3,LRe2]} 22. Bxd4 {[%emt 0:02:30]} Bxd4 {[%emt 0:05:50]} 23. Nc5 {[%emt 0:01:10]} Bxc5 {[%emt 0:00:10]} 24. bxc5 {[%emt 0:00:17]} Qxa3 {[%emt 0:01:36]} (24... e4 $142 25. Ra1 Qd5) 25. Qc2 {[%emt 0:00:26]} Qa5 {[%emt 0:09:10]} 26. Ra1 {[%emt 0:01:40]} Qc7 {[%emt 0:00:08]} 27. Rxa7 {[%emt 0:01:05]} Ra8 {[%emt 0:00:50]} 28. Rea1 {[%emt 0:02:48]} Rxa7 {[%emt 0:00:05]} 29. Rxa7 {[%emt 0:00:07]} Be6 {[%emt 0:05:26]} 30. Qb2 {[%emt 0:04:01]} Rb8 {[%emt 0:00:04]} 31. Qb4 {[%emt 0:06:02]} Qd7 {[%emt 0:04:16]} 32. h4 {[%emt 0:06:05]} Bg4 {[%emt 0:03:17]} 33. Qb2 {[%emt 0:05:10]} Qd4 {[%emt 0:02:18]} 34. Qxd4 {[%emt 0:03:28]} exd4 $14 {[%emt 0:00:02][%mdl 4096] Endgame. KRB-KRB} 35. Ra4 {[%emt 0:00:18]} Rd8 {[%emt 0:06:07]} 36. e3 {[%emt 0:01:43]} dxe3 $1 {[%emt 0:00:02]} 37. Rxg4 $4 {[%emt 0:00:21][%mdl 8192] Loses the game.} (37. fxe3 $14 {is the one way to stay ahead.} Be6 38. d4) 37... f5 $19 {[%emt 0:00:02] [#] Threatens to win with ...e2.} 38. fxe3 {[%emt 0:08:30]} (38. Rg6 Kf7 39. fxe3 Kxg6 40. d4) 38... fxg4 {[%emt 0:00:45] Black is clearly winning.} 39. Be4 {[%emt 0:00:04]} (39. d4 $142) 39... Re8 {[%emt 0:00:25][%cal Oe8e4] aiming for ...Rxe4!} 40. Kf2 {[%emt 0:00:09]} Re5 {[%emt 0:01:19] Weighted Error Value: White=0.31/Black=0.09 (flawless) .  Loses game:     	White=1     	---        Mistake:       	White=3     	Black=1      Inaccurate:     	White=3     	Black=2      OK:         	White=11    	Black=13     Best:        	White=2     	Black=3      Strong:       	---       	Black=1} 0-1

[Event "43rd Indian-chT 2023-24"]
[Site "Dharamsala"]
[Date "2024.04.04"]
[Round "9.7"]
[White "Das, Sayantan"]
[Black "Devansh Singh"]
[Result "1-0"]
[ECO "C41"]
[WhiteElo "2502"]
[BlackElo "1815"]
[Annotator "TA"]
[PlyCount "93"]
[EventDate "2024.03.28"]
[EventType "team-tourn"]
[EventCountry "IND"]
[SourceTitle "playchess.com"]
[Source "ChessBase"]
[SourceQuality "1"]
[TimeControl "5400+30"]

{[%evp 17,93,40,38,34,47,17,21,17,39,13,17,16,16,10,28,13,5,9,-1,-18,-1,-18,-13,-14,-13,-22,0,-8,0,0,9,4,77,0,67,69,65,24,35,0,0,0,3,0,0,-10,2,0,0,0,96,-29,0,0,133,136,145,145,830,853,1174,1171,1160,1087,1137,1087,29988,29989,29989,29990,29990,29991,29991,29992,29992,29993,29993,29994]} 1. e4 {[%emt 0:00:11]} d6 {[%emt 0:03:08]} 2. d4 {[%emt 0:00:10]} Nd7 {[%emt 0:00:23]} 3. Nc3 {[%emt 0:01:49]} e5 {[%emt 0:02:13]} 4. Nf3 {[%emt 0:00:06]} Ngf6 {[%emt 0:00:15]} 5. Bc4 {[%emt 0:00:14]} h6 {[%emt 0:02:47]} 6. O-O {[%emt 0:00:57]} Be7 {[%emt 0:00:17]} 7. Re1 {[%emt 0:05:20]} c6 {[%emt 0:01:30]} 8. a4 {[%emt 0:00:13]} O-O {[%emt 0:01:00]} 9. h3 {[%emt 0:00:49]} Qc7 {[%emt 0:03:13]} 10. a5 {[%emt 0:01:38]} Rb8 {[%emt 0:04:21]} 11. Nh4 {[%emt 0:08:55]} exd4 {[%emt 0:08:23]} 12. Qxd4 {[%emt 0:00:39][%cal Oc4a2] The position is equal.} Ne5 {[%emt 0:00:18] Strongly threatening ...c5.} 13. Be2 {[%emt 0:06:39]} (13. Bb3 {is interesting.} Bxh3 14. f4 Nh5 15. fxe5 Bxh4 16. Re3) 13... Nh7 {[%emt 0:17:39][%cal Bf6h7,Bh7g5,Bg5e6,Be6c5][%mdl 32] Prevents f4} 14. Nf3 {[%emt 0:03:41]} b5 {[%emt 0:14:26]} 15. axb6 {[%emt 0:00:42]} axb6 {[%emt 0:00:17]} 16. Be3 {[%emt 0:01:52]} Nxf3+ {[%emt 0:02:39]} 17. Bxf3 {[%emt 0:00:07]} Ng5 {[%emt 0:00:19]} 18. Bg4 {[%emt 0:03:40]} Bf6 {[%emt 0:05:53]} 19. Qd3 {[%emt 0:00:37]} Bxg4 {[%emt 0:01:52]} 20. hxg4 {[%emt 0:00:07]} Ne6 {[%emt 0:00:27]} 21. Qd2 {[%emt 0:04:12]} Nc5 {[%emt 0:01:59]} 22. Bd4 {[%emt 0:01:00] Bxf6 would now be deadly.} Bxd4 {[%emt 0:00:44]} 23. Qxd4 {[%emt 0:00:03]} Rfe8 {[%emt 0:01:23]} 24. f3 Re6 {[%emt 0:05:31]} (24... Ne6 $11 25. Qf2 Rbd8) 25. Ne2 {[%emt 0:08:02] White has more active pieces.} (25. b4 $16 Nd7 26. b5) 25... Rg6 {[%emt 0:01:49]} (25... Re5 $11) 26. Rad1 $14 {[%emt 0:02:30]} Rd8 {[%emt 0:02:15]} 27. Qf2 {[%emt 0:02:52]} Ne6 {[%emt 0:03:24]} 28. c4 {[%emt 0:11:26]} Rg5 $1 {[%emt 0:02:25]} 29. Nd4 {[%emt 0:07:51]} Rc5 {[%emt 0:02:34]} 30. b3 {[%emt 0:05:21]} b5 {[%emt 0:01:21]} 31. Rc1 {[%emt 0:03:58]} bxc4 {[%emt 0:01:17] Threatens to win with ...Nxd4.} 32. bxc4 {[%emt 0:04:18]} Rb8 {[%emt 0:01:13]} 33. Nf5 {[%emt 0:01:25]} g6 {[%emt 0:00:37]} (33... Rb4 $11 {remains equal.}) 34. Ne3 {[%emt 0:02:34]} (34. Nxh6+ $16 Kg7 35. g5) 34... Nf4 {[%emt 0:00:43]} 35. Qd2 {[%emt 0:03:09][%cal Oe3f5] Prevents Nd3.} Rb3 {[%emt 0:03:00] [#]} (35... Kh7 $11) 36. Nf5 $1 $16 {[%emt 0:05:24][%mdl 512]} gxf5 {[%emt 0:05:27]} 37. exf5 {[%emt 0:01:15]} ({Much weaker is} 37. Qxf4 $6 fxg4 38. Qxh6 Re5 $11) 37... d5 $2 {[%emt 0:01:24][%mdl 8192] This costs Black the game.} (37... Qb6 $16 38. Kh2 Qd8 (38... Nd3 39. Qxh6 Nxe1 40. Rxe1 Qb8 41. f6) 39. Qxf4 Qh4+ 40. Kg1 Qf6) 38. Re8+ $18 {[%emt 0:01:36]} Kh7 {[%emt 0:00:25]} 39. Qd4 {[%emt 0:00:03][%csl Ge8][%cal Rd4h8]} Ne2+ {[%emt 0:00:37]} 40. Rxe2 {[%emt 0:00:03][%cal Oe2e8]} Rxc4 {[%emt 0:00:17]} 41. Rxc4 {[%emt 0:00:48][%cal Oe2e8] Threatening mate with Re8!} dxc4 {[%emt 0:00:32][%mdl 4096] Endgame. [#] KQR-KQR} 42. Re8 $1 {[%emt 0:00:51][%csl Ge8][%cal Rd4h8] White mates.} ({Less strong is} 42. Qxc4 Rb8 43. Re1 Rd8 $14) 42... Rb1+ {[%emt 0:00:28]} 43. Kf2 {[%emt 0:00:02][%csl Gd4][%cal Re8h8]} f6 {[%emt 0:00:12]} 44. Qxf6 {[%emt 0:00:20][%csl Ge8][%cal Rf6h8]} Qb6+ {[%emt 0:00:47]} 45. Kg3 {[%emt 0:00:12][%csl Gf6][%cal Re8h8]} Qc7+ {[%emt 0:00:02]} 46. f4 {[%emt 0:00:15][%csl Gf6][%cal Re8h8]} Rb3+ {[%emt 0:00:34]} 47. Kh4 {[%emt 0:00:05] Weighted Error Value: White=0.16 (very precise) /Black=0.36.  Loses game:     	---       	Black=1      Mistake:       	White=2     	Black=4      Inaccurate:     	White=4     	Black=2      OK:         	White=4     	Black=9      Best:        	White=1     	---        Strong:       	---       	Black=1      Brilliant:      	White=1     	---} 1-0

[Event "43rd Indian-chT 2023-24"]
[Site "Dharamsala"]
[Date "2024.04.04"]
[Round "9.8"]
[White "Mishra, Kamad"]
[Black "Swapnil, S. Dhopade"]
[Result "0-1"]
[ECO "D00"]
[WhiteElo "1812"]
[BlackElo "2454"]
[Annotator "RC"]
[PlyCount "58"]
[EventDate "2024.03.28"]
[EventType "team-tourn"]
[EventCountry "IND"]
[SourceTitle "playchess.com"]
[Source "ChessBase"]
[SourceQuality "1"]
[TimeControl "5400+30"]

1. d4 {[%emt 0:00:09]} Nf6 {[%emt 0:00:12]} 2. Bg5 {[%emt 0:00:23]} d5 {[%emt 0:00:48]} 3. e3 {[%emt 0:00:13]} c5 {[%emt 0:00:20]} 4. Bxf6 {[%emt 0:00:30]} gxf6 {[%emt 0:00:05]} 5. dxc5 {[%emt 0:00:23]} Nc6 {[%emt 0:00:12]} 6. Nc3 {[%emt 0:02:46]} e6 {[%emt 0:00:44]} 7. Qh5 {[%emt 0:06:25]} Bxc5 {[%emt 0:00:34]} 8. O-O-O {[%emt 0:01:19]} Qe7 {[%emt 0:05:06]} 9. Nge2 {[%emt 0:06:20]} Bd7 {[%emt 0:08:18]} 10. Nf4 {[%emt 0:04:10]} O-O-O {[%emt 0:03:18]} 11. Bb5 {[%emt 0:15:47]} Kb8 {[%emt 0:05:28]} 12. Rhe1 {[%emt 0:05:58]} Bb4 {[%emt 0:02:34]} 13. Nfe2 {[%emt 0:04:42]} Rc8 {[%emt 0:08:41]} 14. a3 {[%emt 0:03:33]} Bxc3 {[%emt 0:18:46]} 15. Nxc3 {[%emt 0:02:10]} Ne5 {[%emt 0:00:09]} 16. Bxd7 {[%emt 0:10:20]} Qxd7 {[%emt 0:00:10]} 17. Qh4 f5 {[%emt 0:05:09]} 18. Qf4 {[%emt 0:10:05]} Qc7 {[%emt 0:04:24]} 19. Re2 {[%emt 0:05:39]} a6 {[%emt 0:00:30]} 20. Rd4 {[%emt 0:04:34]} Rhg8 {[%emt 0:01:26]} 21. f3 {[%emt 0:01:25]} f6 {[%emt 0:00:08]} 22. Qh4 {[%emt 0:01:15]} Rg6 {[%emt 0:00:30]} 23. e4 {[%emt 0:03:24]} fxe4 {[%emt 0:05:43]} 24. fxe4 {[%emt 0:00:16]} Nc6 {[%emt 0:00:10]} 25. Rd3 {[%emt 0:02:43]} d4 {[%emt 0:00:10]} 26. Nb1 {[%emt 0:02:31]} e5 {[%emt 0:03:02]} 27. Rg3 {[%emt 0:03:40]} Na5 {[%emt 0:01:48]} 28. b4 {[%emt 0:01:32]} Rxg3 {[%emt 0:04:34]} 29. hxg3 {[%emt 0:01:55]} d3 {[%emt 0:00:24]} 0-1